[Event "Early-Titled-Tuesday-Blitz-June-18-2024"]
[Site "Chess.com"]
[Date "2024.06.18"]
[Round "5"]
[White "TitarovVasiliYouTube"]
[Black "c63_amg"]
[Result "0-1"]
[WhiteElo "2598"]
[BlackElo "2803"]
[TimeControl "180+1"]
[EndTime "8:58:40 PDT"]
[Termination "c63_amg won on time"]

1. a3 {[%clk 0:02:56.1]} 1... e5 {[%clk 0:02:56.4]} 2. e3 {[%clk 0:02:57]} 2...
Nf6 {[%clk 0:02:56]} 3. c4 {[%clk 0:02:57.6]} 3... c6 {[%clk 0:02:53.2]} 4. Nc3
{[%clk 0:02:57.1]} 4... d5 {[%clk 0:02:53.6]} 5. cxd5 {[%clk 0:02:56.5]} 5...
cxd5 {[%clk 0:02:54.5]} 6. d4 {[%clk 0:02:53.2]} 6... e4 {[%clk 0:02:54.7]} 7.
Qb3 {[%clk 0:02:52.4]} 7... Nc6 {[%clk 0:02:50.7]} 8. Bd2 {[%clk 0:02:52.6]}
8... Be7 {[%clk 0:02:50.6]} 9. Nh3 {[%clk 0:02:50.3]} 9... O-O {[%clk
0:02:41.8]} 10. Nf4 {[%clk 0:02:49.9]} 10... Na5 {[%clk 0:02:38.4]} 11. Qa2
{[%clk 0:02:47.1]} 11... Be6 {[%clk 0:02:34.9]} 12. Be2 {[%clk 0:02:43]} 12...
Rc8 {[%clk 0:02:27.9]} 13. O-O {[%clk 0:02:41.1]} 13... Bd6 {[%clk 0:02:25.6]}
14. Rac1 {[%clk 0:02:36.4]} 14... Nc4 {[%clk 0:01:51.8]} 15. Bxc4 {[%clk
0:02:36.4]} 15... Rxc4 {[%clk 0:01:51]} 16. Qb3 {[%clk 0:02:25.4]} 16... Qd7
{[%clk 0:01:41.6]} 17. Nxe6 {[%clk 0:02:04.8]} 17... fxe6 {[%clk 0:01:38.1]} 18.
f3 {[%clk 0:01:45]} 18... exf3 {[%clk 0:01:33.4]} 19. Rxf3 {[%clk 0:01:45.9]}
19... Rcc8 {[%clk 0:01:32.1]} 20. Rcf1 {[%clk 0:01:43.6]} 20... a6 {[%clk
0:01:21.6]} 21. h3 {[%clk 0:01:37.6]} 21... b5 {[%clk 0:01:21.1]} 22. Be1 {[%clk
0:01:22.3]} 22... Bb8 {[%clk 0:00:59.5]} 23. Bg3 {[%clk 0:01:13.2]} 23... Bxg3
{[%clk 0:00:50.9]} 24. Rxg3 {[%clk 0:01:14.1]} 24... Rf7 {[%clk 0:00:44.6]} 25.
Rgf3 {[%clk 0:01:14.2]} 25... Rcf8 {[%clk 0:00:45.2]} 26. Qb4 {[%clk 0:01:10.5]}
26... Qc7 {[%clk 0:00:39]} 27. g4 {[%clk 0:00:54.9]} 27... h6 {[%clk 0:00:39]}
28. Kg2 {[%clk 0:00:55.5]} 28... Ne4 {[%clk 0:00:13.3]} 29. Qxf8+ {[%clk
0:00:50.2]} 29... Rxf8 {[%clk 0:00:12.9]} 30. Rxf8+ {[%clk 0:00:51.1]} 30... Kh7
{[%clk 0:00:13.6]} 31. Nxe4 {[%clk 0:00:51.2]} 31... dxe4 {[%clk 0:00:14.4]} 32.
R1f2 {[%clk 0:00:45.8]} 32... Qc1 {[%clk 0:00:14.7]} 33. Re2 {[%clk 0:00:30]}
33... Qd1 {[%clk 0:00:15.1]} 34. Kf2 {[%clk 0:00:27.7]} 34... Qh1 {[%clk
0:00:14.5]} 35. Rf4 {[%clk 0:00:27.4]} 35... Qxh3 {[%clk 0:00:11.4]} 36. Ke1
{[%clk 0:00:23.7]} 36... Qh1+ {[%clk 0:00:11.2]} 37. Kd2 {[%clk 0:00:23.6]}
37... Qb1 {[%clk 0:00:12.1]} 38. b4 {[%clk 0:00:16.7]} 38... Qb2+ {[%clk
0:00:10.3]} 39. Ke1 {[%clk 0:00:16.5]} 39... Qxa3 {[%clk 0:00:11.2]} 40. Rxe4
{[%clk 0:00:15.7]} 40... Qxb4+ {[%clk 0:00:10.7]} 41. Kf2 {[%clk 0:00:16]} 41...
Qc4 {[%clk 0:00:11.2]} 42. Re5 {[%clk 0:00:11.8]} 42... b4 {[%clk 0:00:11.3]}
43. Rc5 {[%clk 0:00:09.5]} 43... Qd3 {[%clk 0:00:09.8]} 44. Rb2 {[%clk
0:00:07.2]} 44... b3 {[%clk 0:00:07.5]} 45. Rc1 {[%clk 0:00:02.4]} 45... a5
{[%clk 0:00:07.3]} 46. Ra1 {[%clk 0:00:01.3]} 46... a4 {[%clk 0:00:07.9]} 0-1

[Event "Early-Titled-Tuesday-Blitz-June-18-2024"]
[Site "Chess.com"]
[Date "2024.06.18"]
[Round "5"]
[White "Puzzlebot_1294"]
[Black "VaglioSagan"]
[Result "1-0"]
[WhiteElo "2674"]
[BlackElo "2484"]
[TimeControl "180+1"]
[EndTime "8:58:40 PDT"]
[Termination "Puzzlebot_1294 won by checkmate"]

1. d4 {[%clk 0:03:00.9]} 1... d5 {[%clk 0:02:58.3]} 2. Bf4 {[%clk 0:02:59.6]}
2... Nf6 {[%clk 0:02:58.4]} 3. e3 {[%clk 0:02:59.3]} 3... c5 {[%clk 0:02:58.5]}
4. dxc5 {[%clk 0:02:59.2]} 4... Nc6 {[%clk 0:02:58.5]} 5. Bb5 {[%clk 0:02:58.5]}
5... e6 {[%clk 0:02:51.7]} 6. b4 {[%clk 0:02:57.8]} 6... a6 {[%clk 0:02:35.8]}
7. Bxc6+ {[%clk 0:02:55.5]} 7... bxc6 {[%clk 0:02:36.7]} 8. c3 {[%clk
0:02:56.2]} 8... a5 {[%clk 0:02:36.4]} 9. Nd2 {[%clk 0:02:55.8]} 9... axb4
{[%clk 0:02:24.6]} 10. cxb4 {[%clk 0:02:56.7]} 10... Ra3 {[%clk 0:02:24.1]} 11.
Ne2 {[%clk 0:02:54.2]} 11... Ba6 {[%clk 0:02:21.9]} 12. O-O {[%clk 0:02:49.2]}
12... Be7 {[%clk 0:02:19.3]} 13. Nb1 {[%clk 0:02:46.9]} 13... Bxe2 {[%clk
0:02:16.8]} 14. Qxe2 {[%clk 0:02:47.8]} 14... Ra7 {[%clk 0:02:14.9]} 15. Nc3
{[%clk 0:02:43.9]} 15... O-O {[%clk 0:02:10.3]} 16. a4 {[%clk 0:02:43.4]} 16...
Nd7 {[%clk 0:02:08.8]} 17. Bg3 {[%clk 0:02:40.3]} 17... Bf6 {[%clk 0:02:05.8]}
18. Qc2 {[%clk 0:02:37.5]} 18... Qa8 {[%clk 0:02:05.7]} 19. a5 {[%clk
0:02:02.3]} 19... Qb7 {[%clk 0:02:04.8]} 20. Rab1 {[%clk 0:01:53.3]} 20... Ne5
{[%clk 0:01:58.8]} 21. Bxe5 {[%clk 0:01:50.4]} 21... Bxe5 {[%clk 0:01:59.7]} 22.
Ne2 {[%clk 0:01:49.8]} 22... Qc7 {[%clk 0:01:53.2]} 23. f4 {[%clk 0:01:48.2]}
23... Bf6 {[%clk 0:01:52.9]} 24. g3 {[%clk 0:01:48.3]} 24... Rb8 {[%clk
0:01:53]} 25. Kg2 {[%clk 0:01:46.8]} 25... Rab7 {[%clk 0:01:45.7]} 26. Qd2
{[%clk 0:01:46.8]} 26... Rb5 {[%clk 0:01:43.8]} 27. f5 {[%clk 0:01:36.2]} 27...
e5 {[%clk 0:01:33.2]} 28. g4 {[%clk 0:01:14.6]} 28... Qb7 {[%clk 0:01:23.4]} 29.
e4 {[%clk 0:01:12]} 29... h6 {[%clk 0:01:16.8]} 30. Nc3 {[%clk 0:00:53.2]} 30...
d4 {[%clk 0:00:51.7]} 31. Nxb5 {[%clk 0:00:50.8]} 31... Qxb5 {[%clk 0:00:52.6]}
32. Rfd1 {[%clk 0:00:48.9]} 32... Bg5 {[%clk 0:00:48.8]} 33. Qd3 {[%clk
0:00:46.8]} 33... Qa4 {[%clk 0:00:49.3]} 34. Qc4 {[%clk 0:00:37.3]} 34... Bf4
{[%clk 0:00:40.2]} 35. Ra1 {[%clk 0:00:28]} 35... Qxb4 {[%clk 0:00:31.9]} 36.
Qxb4 {[%clk 0:00:26.7]} 36... Rxb4 {[%clk 0:00:32.8]} 37. a6 {[%clk 0:00:26.4]}
37... Rb2+ {[%clk 0:00:32.5]} 38. Kf1 {[%clk 0:00:24.2]} 38... Rb8 {[%clk
0:00:28.6]} 39. a7 {[%clk 0:00:20.1]} 39... Ra8 {[%clk 0:00:29.2]} 40. Rdb1
{[%clk 0:00:20.7]} 40... Kh7 {[%clk 0:00:22.5]} 41. Rb8 {[%clk 0:00:19.6]} 41...
Rxa7 {[%clk 0:00:22.9]} 42. Rxa7 {[%clk 0:00:20.3]} 42... d3 {[%clk 0:00:23.6]}
43. Rxf7 {[%clk 0:00:20.9]} 43... d2 {[%clk 0:00:24.2]} 44. Rd8 {[%clk
0:00:21.2]} 44... h5 {[%clk 0:00:25.1]} 45. gxh5 {[%clk 0:00:15.8]} 45... Kh6
{[%clk 0:00:25.6]} 46. h4 {[%clk 0:00:13.5]} 46... Kxh5 {[%clk 0:00:25.6]} 47.
Rxg7 {[%clk 0:00:13.7]} 47... Kh6 {[%clk 0:00:24.6]} 48. Rg6+ {[%clk 0:00:13.2]}
48... Kh7 {[%clk 0:00:25.2]} 49. Ke2 {[%clk 0:00:13.9]} 49... Bh2 {[%clk
0:00:21.9]} 50. h5 {[%clk 0:00:12.3]} 50... Bf4 {[%clk 0:00:22]} 51. f6 {[%clk
0:00:12.6]} 51... Bh6 {[%clk 0:00:21.3]} 52. Rd7+ {[%clk 0:00:12.4]} 52... Kh8
{[%clk 0:00:18.9]} 53. Rxh6+ {[%clk 0:00:13.3]} 53... Kg8 {[%clk 0:00:19.6]} 54.
f7+ {[%clk 0:00:13.7]} 54... Kf8 {[%clk 0:00:20.2]} 55. Rh8+ {[%clk 0:00:13.9]}
55... Kg7 {[%clk 0:00:21]} 56. f8=Q# {[%clk 0:00:14.5]} 1-0

[Event "Early-Titled-Tuesday-Blitz-June-18-2024"]
[Site "Chess.com"]
[Date "2024.06.18"]
[Round "5"]
[White "masnyszachistaaa"]
[Black "cthulhuuu"]
[Result "0-1"]
[WhiteElo "2562"]
[BlackElo "2371"]
[TimeControl "180+1"]
[EndTime "8:58:42 PDT"]
[Termination "cthulhuuu won by resignation"]

1. Nf3 {[%clk 0:03:00.9]} 1... Nf6 {[%clk 0:02:58.1]} 2. b3 {[%clk 0:02:59.1]}
2... g6 {[%clk 0:02:57.3]} 3. Bb2 {[%clk 0:02:58.8]} 3... Bg7 {[%clk 0:02:52.3]}
4. g3 {[%clk 0:02:54]} 4... O-O {[%clk 0:02:50.3]} 5. Bg2 {[%clk 0:02:52.1]}
5... d6 {[%clk 0:02:51]} 6. d4 {[%clk 0:02:44.9]} 6... c6 {[%clk 0:02:51.1]} 7.
O-O {[%clk 0:02:44.1]} 7... Nbd7 {[%clk 0:02:49.2]} 8. Nbd2 {[%clk 0:02:42.7]}
8... e5 {[%clk 0:02:48.7]} 9. dxe5 {[%clk 0:02:41.5]} 9... dxe5 {[%clk
0:02:49.6]} 10. Nc4 {[%clk 0:02:38.5]} 10... e4 {[%clk 0:02:49.1]} 11. Ng5
{[%clk 0:02:28.1]} 11... Qe7 {[%clk 0:02:45.6]} 12. Qd6 {[%clk 0:02:06.4]} 12...
Re8 {[%clk 0:02:45.7]} 13. Rad1 {[%clk 0:01:53.2]} 13... h6 {[%clk 0:02:43.4]}
14. Qxe7 {[%clk 0:01:30.1]} 14... Rxe7 {[%clk 0:02:44.3]} 15. Bxf6 {[%clk
0:01:30.3]} 15... Nxf6 {[%clk 0:02:12.6]} 16. Rd8+ {[%clk 0:01:27.1]} 16... Bf8
{[%clk 0:02:12.9]} 17. Nd6 {[%clk 0:01:09.6]} 17... hxg5 {[%clk 0:01:28.6]} 18.
Nxc8 {[%clk 0:01:07.1]} 18... Re8 {[%clk 0:01:18.6]} 19. Rxe8 {[%clk 0:00:48.8]}
19... Nxe8 {[%clk 0:01:19.5]} 20. Bh3 {[%clk 0:00:48.9]} 20... f5 {[%clk
0:01:17.9]} 21. f3 {[%clk 0:00:39]} 21... e3 {[%clk 0:01:10]} 22. Nxa7 {[%clk
0:00:33.4]} 22... Rxa7 {[%clk 0:01:09.9]} 23. a4 {[%clk 0:00:34.3]} 23... b5
{[%clk 0:01:07.6]} 24. Ra1 {[%clk 0:00:27.9]} 24... Bg7 {[%clk 0:00:57.6]} 25.
Ra2 {[%clk 0:00:13.8]} 25... Bc3 {[%clk 0:00:57.4]} 26. f4 {[%clk 0:00:12.6]}
26... g4 {[%clk 0:00:40.9]} 27. Bg2 {[%clk 0:00:12.3]} 27... Ra6 {[%clk
0:00:41.3]} 28. h3 {[%clk 0:00:10.4]} 28... gxh3 {[%clk 0:00:39.1]} 29. Bxh3
{[%clk 0:00:11.3]} 29... Nd6 {[%clk 0:00:37.7]} 30. g4 {[%clk 0:00:10.9]} 30...
Kf7 {[%clk 0:00:28.7]} 31. Kg2 {[%clk 0:00:10.2]} 31... Kf6 {[%clk 0:00:27.1]}
32. Kf3 {[%clk 0:00:10.5]} 32... Bd2 {[%clk 0:00:23.7]} 33. Bg2 {[%clk
0:00:07.4]} 33... Ne4 {[%clk 0:00:23]} 34. g5+ {[%clk 0:00:04.4]} 34... Ke6
{[%clk 0:00:23]} 35. Bf1 {[%clk 0:00:02.9]} 35... Nc3 {[%clk 0:00:21.6]} 36. Ra1
{[%clk 0:00:02.6]} 36... bxa4 {[%clk 0:00:20.6]} 37. bxa4 {[%clk 0:00:03.5]}
37... Rxa4 {[%clk 0:00:21]} 38. Rxa4 {[%clk 0:00:03.8]} 38... Nxa4 {[%clk
0:00:21.2]} 39. Kg3 {[%clk 0:00:03.5]} 39... Nc5 {[%clk 0:00:21.3]} 40. Bg2
{[%clk 0:00:03.8]} 40... Ne4+ {[%clk 0:00:19.2]} 41. Kh2 {[%clk 0:00:03.1]}
41... Kd5 {[%clk 0:00:18.6]} 42. Bf3 {[%clk 0:00:03.2]} 42... Bc3 {[%clk
0:00:16.6]} 43. Kg2 {[%clk 0:00:03.2]} 43... Ba5 {[%clk 0:00:15.6]} 44. Kh3
{[%clk 0:00:02.9]} 44... Bc7 {[%clk 0:00:15.5]} 45. Bxe4+ {[%clk 0:00:02.2]}
45... Kxe4 {[%clk 0:00:15.5]} 46. c4 {[%clk 0:00:02.2]} 46... Bxf4 {[%clk
0:00:15.4]} 47. Kh4 {[%clk 0:00:01.6]} 47... Be5 {[%clk 0:00:08.7]} 48. c5
{[%clk 0:00:01.5]} 48... Bd4 {[%clk 0:00:08.4]} 0-1

[Event "Early-Titled-Tuesday-Blitz-June-18-2024"]
[Site "Chess.com"]
[Date "2024.06.18"]
[Round "5"]
[White "RantomOpening"]
[Black "Aradhya2000"]
[Result "1/2-1/2"]
[WhiteElo "2613"]
[BlackElo "2811"]
[TimeControl "180+1"]
[EndTime "8:58:46 PDT"]
[Termination "Game drawn - insufficient material"]

1. Nc3 {[%clk 0:02:13.3]} 1... d5 {[%clk 0:02:55.9]} 2. e4 {[%clk 0:02:10.9]}
2... d4 {[%clk 0:02:55.9]} 3. Nce2 {[%clk 0:02:10.6]} 3... c5 {[%clk 0:02:53.7]}
4. Nf3 {[%clk 0:02:10.5]} 4... Nc6 {[%clk 0:02:53.2]} 5. Ng3 {[%clk 0:02:10.9]}
5... h5 {[%clk 0:02:52.5]} 6. h4 {[%clk 0:02:07.7]} 6... g6 {[%clk 0:02:48.3]}
7. Be2 {[%clk 0:02:07.3]} 7... Bg7 {[%clk 0:02:47.5]} 8. d3 {[%clk 0:02:08.2]}
8... Nf6 {[%clk 0:02:47.3]} 9. Bg5 {[%clk 0:01:56.3]} 9... Bg4 {[%clk 0:02:43]}
10. O-O {[%clk 0:01:55.1]} 10... Nd7 {[%clk 0:02:40.6]} 11. Nh2 {[%clk
0:01:50.3]} 11... Bxe2 {[%clk 0:02:39.8]} 12. Qxe2 {[%clk 0:01:51.2]} 12... Qb6
{[%clk 0:02:38.9]} 13. Bc1 {[%clk 0:01:48.3]} 13... e5 {[%clk 0:02:37.3]} 14. f4
{[%clk 0:01:47]} 14... exf4 {[%clk 0:02:37.4]} 15. Bxf4 {[%clk 0:01:46.8]} 15...
Nde5 {[%clk 0:02:34.3]} 16. c3 {[%clk 0:01:13.5]} 16... O-O-O {[%clk 0:02:31.1]}
17. Rac1 {[%clk 0:00:57.7]} 17... dxc3 {[%clk 0:02:26.3]} 18. Rxc3 {[%clk
0:00:53.3]} 18... c4+ {[%clk 0:02:26.7]} 19. Be3 {[%clk 0:00:52.5]} 19... cxd3
{[%clk 0:02:26.7]} 20. Rxd3 {[%clk 0:00:50.6]} 20... Qa6 {[%clk 0:02:13.9]} 21.
Rxd8+ {[%clk 0:00:49.8]} 21... Rxd8 {[%clk 0:02:14.6]} 22. Qxa6 {[%clk
0:00:50.7]} 22... bxa6 {[%clk 0:02:14.9]} 23. Nf3 {[%clk 0:00:45.8]} 23... Nc4
{[%clk 0:02:12.2]} 24. Bc1 {[%clk 0:00:41.4]} 24... Nxb2 {[%clk 0:02:01]} 25.
Ng5 {[%clk 0:00:39.5]} 25... Nd3 {[%clk 0:01:57.7]} 26. Be3 {[%clk 0:00:28.8]}
26... Be5 {[%clk 0:01:27.1]} 27. Ne2 {[%clk 0:00:22.1]} 27... f6 {[%clk
0:01:25.1]} 28. Nf7 {[%clk 0:00:21.6]} 28... Re8 {[%clk 0:00:51.2]} 29. Nxe5
{[%clk 0:00:20.4]} 29... Ncxe5 {[%clk 0:00:51.9]} 30. Rxf6 {[%clk 0:00:19.2]}
30... Ng4 {[%clk 0:00:51.7]} 31. Rc6+ {[%clk 0:00:17.2]} 31... Kb7 {[%clk
0:00:49.7]} 32. Rc3 {[%clk 0:00:16.6]} 32... Rxe4 {[%clk 0:00:46.9]} 33. Rxd3
{[%clk 0:00:16.3]} 33... Nxe3 {[%clk 0:00:46.8]} 34. Nf4 {[%clk 0:00:13.3]}
34... Rxf4 {[%clk 0:00:46.4]} 35. Rxe3 {[%clk 0:00:13.5]} 35... Rxh4 {[%clk
0:00:46.5]} 36. Re7+ {[%clk 0:00:13.9]} 36... Kb8 {[%clk 0:00:46.4]} 37. Re8+
{[%clk 0:00:14.2]} 37... Kc7 {[%clk 0:00:45]} 38. Re7+ {[%clk 0:00:15.1]} 38...
Kd6 {[%clk 0:00:45.2]} 39. Rxa7 {[%clk 0:00:15.3]} 39... Ra4 {[%clk 0:00:45.8]}
40. Rg7 {[%clk 0:00:15.8]} 40... Rg4 {[%clk 0:00:44.5]} 41. Ra7 {[%clk
0:00:15.6]} 41... Ra4 {[%clk 0:00:42.9]} 42. Rg7 {[%clk 0:00:15.7]} 42... Rxa2
{[%clk 0:00:43]} 43. Rxg6+ {[%clk 0:00:16.2]} 43... Ke7 {[%clk 0:00:35.9]} 44.
Rg5 {[%clk 0:00:16.5]} 44... h4 {[%clk 0:00:35.6]} 45. Rg4 {[%clk 0:00:17]}
45... h3 {[%clk 0:00:35.3]} 46. gxh3 {[%clk 0:00:17.9]} 46... a5 {[%clk
0:00:35.9]} 47. h4 {[%clk 0:00:17.9]} 47... a4 {[%clk 0:00:36.4]} 48. h5 {[%clk
0:00:18.4]} 48... a3 {[%clk 0:00:32.9]} 49. h6 {[%clk 0:00:14.8]} 49... Rb2
{[%clk 0:00:33]} 50. Ra4 {[%clk 0:00:12.4]} 50... Kf7 {[%clk 0:00:29.5]} 51.
Rxa3 {[%clk 0:00:11.5]} 51... Kg6 {[%clk 0:00:29.7]} 52. h7 {[%clk 0:00:11.5]}
52... Kxh7 {[%clk 0:00:28.4]} 53. Ra6 {[%clk 0:00:11.8]} 53... Kg7 {[%clk
0:00:27.9]} 54. Kf1 {[%clk 0:00:10.8]} 54... Kf7 {[%clk 0:00:28.4]} 55. Ke1
{[%clk 0:00:10.8]} 55... Ke7 {[%clk 0:00:28.5]} 56. Kd1 {[%clk 0:00:11.3]} 56...
Rf2 {[%clk 0:00:28.2]} 57. Ke1 {[%clk 0:00:11]} 57... Rg2 {[%clk 0:00:28.5]} 58.
Kf1 {[%clk 0:00:11.2]} 58... Rd2 {[%clk 0:00:28.6]} 59. Ke1 {[%clk 0:00:11.6]}
59... Rd6 {[%clk 0:00:28.6]} 60. Rxd6 {[%clk 0:00:11.4]} 60... Kxd6 {[%clk
0:00:29.5]} 1/2-1/2

[Event "Early-Titled-Tuesday-Blitz-June-18-2024"]
[Site "Chess.com"]
[Date "2024.06.18"]
[Round "5"]
[White "UF_10"]
[Black "DuleMudule"]
[Result "1-0"]
[WhiteElo "2547"]
[BlackElo "2751"]
[TimeControl "180+1"]
[EndTime "8:58:47 PDT"]
[Termination "UF_10 won by resignation"]

1. d4 {[%clk 0:03:00.9]} 1... d5 {[%clk 0:03:00]} 2. Nf3 {[%clk 0:02:57.6]} 2...
Bf5 {[%clk 0:02:59.7]} 3. Bf4 {[%clk 0:02:55.4]} 3... c5 {[%clk 0:02:58.3]} 4.
e3 {[%clk 0:02:51.1]} 4... Nc6 {[%clk 0:02:58.6]} 5. c3 {[%clk 0:02:48.3]} 5...
Qb6 {[%clk 0:02:58.4]} 6. Qb3 {[%clk 0:02:44]} 6... c4 {[%clk 0:02:58]} 7. Qxb6
{[%clk 0:02:29.5]} 7... axb6 {[%clk 0:02:58.9]} 8. Nbd2 {[%clk 0:02:19.6]} 8...
b5 {[%clk 0:02:59.1]} 9. Nh4 {[%clk 0:01:58.6]} 9... Bd7 {[%clk 0:02:52.3]} 10.
a3 {[%clk 0:01:58]} 10... h6 {[%clk 0:02:50.8]} 11. Bg3 {[%clk 0:01:55]} 11...
Nf6 {[%clk 0:02:47.4]} 12. Be2 {[%clk 0:01:54.3]} 12... g5 {[%clk 0:02:46.6]}
13. Nhf3 {[%clk 0:01:54.1]} 13... Bf5 {[%clk 0:02:47.2]} 14. O-O {[%clk
0:01:51.5]} 14... Nd7 {[%clk 0:02:43.9]} 15. Rfe1 {[%clk 0:01:50.1]} 15... Nb6
{[%clk 0:02:43.6]} 16. Bd1 {[%clk 0:01:49]} 16... Bg7 {[%clk 0:02:21.3]} 17. e4
{[%clk 0:01:47.3]} 17... Be6 {[%clk 0:02:21.2]} 18. exd5 {[%clk 0:01:40.1]}
18... Bxd5 {[%clk 0:02:22.1]} 19. Ne4 {[%clk 0:01:40.6]} 19... O-O {[%clk
0:02:13.9]} 20. Nc5 {[%clk 0:01:34.1]} 20... e6 {[%clk 0:02:13.4]} 21. Bc7
{[%clk 0:01:21.9]} 21... Na4 {[%clk 0:02:10.6]} 22. Bxa4 {[%clk 0:01:08.3]}
22... bxa4 {[%clk 0:02:11.5]} 23. Ne5 {[%clk 0:01:04.8]} 23... Rfc8 {[%clk
0:02:08]} 24. Nxc6 {[%clk 0:00:58.7]} 24... Rxc7 {[%clk 0:02:06.8]} 25. Nb4
{[%clk 0:00:58.2]} 25... b6 {[%clk 0:02:04]} 26. Nca6 {[%clk 0:00:50]} 26... Rd7
{[%clk 0:01:55.4]} 27. Nxd5 {[%clk 0:00:50.1]} 27... Rxa6 {[%clk 0:01:29.1]} 28.
Ne3 {[%clk 0:00:42.9]} 28... b5 {[%clk 0:01:29]} 29. Nc2 {[%clk 0:00:41]} 29...
Rad6 {[%clk 0:01:27.9]} 30. Kf1 {[%clk 0:00:38.4]} 30... Rd5 {[%clk 0:01:24.5]}
31. Ne3 {[%clk 0:00:34.2]} 31... R5d6 {[%clk 0:01:24.3]} 32. Nc2 {[%clk
0:00:23.4]} 32... f5 {[%clk 0:01:21.9]} 33. Re2 {[%clk 0:00:21.9]} 33... Kf7
{[%clk 0:01:21.9]} 34. Rae1 {[%clk 0:00:22.3]} 34... Bf6 {[%clk 0:01:20.1]} 35.
Nb4 {[%clk 0:00:19.4]} 35... Re7 {[%clk 0:01:16.4]} 36. f3 {[%clk 0:00:19.1]}
36... h5 {[%clk 0:01:14.6]} 37. Kf2 {[%clk 0:00:19.4]} 37... g4 {[%clk
0:01:13.2]} 38. f4 {[%clk 0:00:17.8]} 38... Ke8 {[%clk 0:01:06.6]} 39. g3 {[%clk
0:00:17.4]} 39... Kd7 {[%clk 0:01:06.3]} 40. Nc2 {[%clk 0:00:16.4]} 40... Rh7
{[%clk 0:01:04.7]} 41. Kg2 {[%clk 0:00:15.4]} 41... h4 {[%clk 0:01:04.5]} 42.
Nb4 {[%clk 0:00:15.2]} 42... Rh6 {[%clk 0:00:54.6]} 43. Nc2 {[%clk 0:00:14]}
43... Bd8 {[%clk 0:00:53.8]} 44. Nb4 {[%clk 0:00:14.2]} 44... Ba5 {[%clk
0:00:47.8]} 45. Nc2 {[%clk 0:00:13.3]} 45... Rd5 {[%clk 0:00:43.3]} 46. Re5
{[%clk 0:00:13.5]} 46... Kd6 {[%clk 0:00:20.3]} 47. Rxd5+ {[%clk 0:00:13.8]}
47... exd5 {[%clk 0:00:20.7]} 48. Re5 {[%clk 0:00:14.5]} 48... hxg3 {[%clk
0:00:20.1]} 49. hxg3 {[%clk 0:00:14.5]} 49... Rf6 {[%clk 0:00:19]} 50. Ne3
{[%clk 0:00:14.4]} 50... Kd7 {[%clk 0:00:15.6]} 51. Rxd5+ {[%clk 0:00:14.7]}
51... Kc6 {[%clk 0:00:14.5]} 52. Rxf5 {[%clk 0:00:14.4]} 52... Rh6 {[%clk
0:00:14.1]} 53. Nxg4 {[%clk 0:00:13.6]} 53... Re6 {[%clk 0:00:13.9]} 54. d5+
{[%clk 0:00:13.9]} 1-0

[Event "Early-Titled-Tuesday-Blitz-June-18-2024"]
[Site "Chess.com"]
[Date "2024.06.18"]
[Round "5"]
[White "Stanbad1"]
[Black "HajiyevKanan"]
[Result "0-1"]
[WhiteElo "2703"]
[BlackElo "2527"]
[TimeControl "180+1"]
[EndTime "8:58:47 PDT"]
[Termination "HajiyevKanan won by resignation"]

1. d4 {[%clk 0:03:00.9]} 1... d5 {[%clk 0:02:59]} 2. Nc3 {[%clk 0:03:01.4]} 2...
c6 {[%clk 0:02:59.1]} 3. Bf4 {[%clk 0:03:01.6]} 3... a6 {[%clk 0:02:59.8]} 4. e3
{[%clk 0:03:01.6]} 4... Nf6 {[%clk 0:03:00.5]} 5. Nf3 {[%clk 0:03:01.7]} 5...
Bg4 {[%clk 0:03:01]} 6. Qd2 {[%clk 0:03:01.4]} 6... Bxf3 {[%clk 0:03:00.9]} 7.
gxf3 {[%clk 0:03:02.3]} 7... e6 {[%clk 0:03:01.6]} 8. e4 {[%clk 0:03:02.6]} 8...
Bb4 {[%clk 0:03:00.5]} 9. Bg2 {[%clk 0:03:00.8]} 9... Qa5 {[%clk 0:03:00.3]} 10.
a3 {[%clk 0:02:59.6]} 10... Nbd7 {[%clk 0:02:59.8]} 11. e5 {[%clk 0:02:47.9]}
11... Nh5 {[%clk 0:02:57.7]} 12. Be3 {[%clk 0:02:46.7]} 12... c5 {[%clk
0:02:40.2]} 13. f4 {[%clk 0:02:43.4]} 13... g6 {[%clk 0:02:28.7]} 14. Ke2 {[%clk
0:02:21.6]} 14... cxd4 {[%clk 0:01:47.7]} 15. Bxd4 {[%clk 0:02:20.3]} 15... Be7
{[%clk 0:01:33]} 16. Bf3 {[%clk 0:02:05.6]} 16... Ng7 {[%clk 0:01:29.9]} 17. b4
{[%clk 0:02:03.4]} 17... Qc7 {[%clk 0:01:29.5]} 18. Rhd1 {[%clk 0:01:49.6]}
18... O-O {[%clk 0:01:23.9]} 19. Be3 {[%clk 0:01:33]} 19... Rac8 {[%clk
0:01:21]} 20. Bxd5 {[%clk 0:01:15]} 20... Qxc3 {[%clk 0:00:35.1]} 21. Bxb7
{[%clk 0:01:08.2]} 21... Qc4+ {[%clk 0:00:21.3]} 22. Qd3 {[%clk 0:01:05.8]}
22... Qxc2+ {[%clk 0:00:18.6]} 23. Kf3 {[%clk 0:01:01.7]} 23... Qxd3 {[%clk
0:00:12.9]} 24. Rxd3 {[%clk 0:01:02.4]} 24... Rc7 {[%clk 0:00:12.9]} 25. Bxa6
{[%clk 0:01:02.1]} 25... Nf5 {[%clk 0:00:13.2]} 26. Rad1 {[%clk 0:01:00.1]}
26... Nxe3 {[%clk 0:00:07.2]} 27. Rxd7 {[%clk 0:00:46.4]} 27... Nxd1 {[%clk
0:00:07.5]} 28. Rxc7 {[%clk 0:00:46.3]} 28... Ra8 {[%clk 0:00:04.8]} 29. b5
{[%clk 0:00:35.9]} 29... Bxa3 {[%clk 0:00:05]} 30. b6 {[%clk 0:00:09.6]} 30...
Rxa6 {[%clk 0:00:04.5]} 31. b7 {[%clk 0:00:10.3]} 31... Rb6 {[%clk 0:00:05.1]}
32. Rc8+ {[%clk 0:00:10.9]} 32... Kg7 {[%clk 0:00:05.8]} 33. b8=Q {[%clk
0:00:11.8]} 33... Rxb8 {[%clk 0:00:06.7]} 34. Rxb8 {[%clk 0:00:12.7]} 34... Nb2
{[%clk 0:00:02.9]} 35. Rb3 {[%clk 0:00:12.6]} 35... Nc4 {[%clk 0:00:03.1]} 36.
Rc3 {[%clk 0:00:12.6]} 36... Nd2+ {[%clk 0:00:02]} 37. Ke3 {[%clk 0:00:12.6]}
37... Bb4 {[%clk 0:00:02.8]} 38. Rc2 {[%clk 0:00:12.2]} 38... Nb3 {[%clk
0:00:02.1]} 39. Rb2 {[%clk 0:00:11.7]} 39... Bc5+ {[%clk 0:00:02.8]} 40. Kf3
{[%clk 0:00:11.7]} 40... Nd4+ {[%clk 0:00:03.1]} 41. Ke4 {[%clk 0:00:12.1]}
41... Nf5 {[%clk 0:00:03.6]} 42. Rc2 {[%clk 0:00:11.7]} 42... Bd4 {[%clk
0:00:04.1]} 43. Re2 {[%clk 0:00:10.5]} 43... Bb6 {[%clk 0:00:04.7]} 44. Rd2
{[%clk 0:00:10.3]} 44... h5 {[%clk 0:00:05.2]} 45. Rc2 {[%clk 0:00:10.7]} 45...
Bd8 {[%clk 0:00:05.7]} 46. Rd2 {[%clk 0:00:11.2]} 46... Be7 {[%clk 0:00:06.4]}
47. Rc2 {[%clk 0:00:11.6]} 47... f6 {[%clk 0:00:06.7]} 48. exf6+ {[%clk
0:00:11.5]} 48... Bxf6 {[%clk 0:00:07.6]} 49. Rc7+ {[%clk 0:00:11.3]} 49... Be7
{[%clk 0:00:08.2]} 50. Rc6 {[%clk 0:00:11.8]} 50... Kf7 {[%clk 0:00:08.3]} 51.
Ra6 {[%clk 0:00:11.6]} 51... Bd6 {[%clk 0:00:08.6]} 52. Ra7+ {[%clk 0:00:11.3]}
52... Kf6 {[%clk 0:00:09.2]} 53. Ra6 {[%clk 0:00:11.3]} 53... Be7 {[%clk
0:00:08.8]} 54. Rc6 {[%clk 0:00:10.8]} 54... Bf8 {[%clk 0:00:09.3]} 55. Ra6
{[%clk 0:00:10.8]} 55... Bh6 {[%clk 0:00:10]} 56. Rc6 {[%clk 0:00:10.8]} 56...
Ne7 {[%clk 0:00:10.4]} 57. Ra6 {[%clk 0:00:10.9]} 57... Nd5 {[%clk 0:00:10.9]}
58. Ra8 {[%clk 0:00:10.1]} 58... Bxf4 {[%clk 0:00:10.6]} 59. Rf8+ {[%clk
0:00:10.2]} 59... Kg5 {[%clk 0:00:11.2]} 60. Re8 {[%clk 0:00:09.9]} 60... Nf6+
{[%clk 0:00:11.4]} 0-1